bitfinex/quotes_ETHUSD_20250518
["timestamp","ask_amount","ask_price","bid_price","bid_amount"]
[1747533318104,0.66666667,2484.4,2484.2,4.57537011]
[1747533318306,0.66666667,2484.4,2484.3,4.02527875]
[1747533318539,0.66666667,2484.4,2483.9,0.8283]
[1747533318740,0.66666667,2484.4,2484.3,4.02527875]
[1747533318944,0.66666667,2484.4,2484.3,6.20866691]
[1747533324260,0.66666667,2484.4,2484.3,4.83036691]
[1747533324546,0.66666667,2484.4,2484.3,4.02527875]
[1747533327159,0.66666667,2484.4,2483.9,4.02585668]
[1747533327315,0.66666667,2484.4,2484.2,4.02543765]
[1747533327508,0.66666667,2484.4,2484.1,4.02547946]
[1747533327745,0.66666667,2484.4,2483.8,1.305]
[1747533327930,0.66666667,2484.4,2484.0,4.02571028]
[1747533328246,0.66666667,2484.4,2484.1,4.02555144]
[1747533330047,0.66666667,2484.4,2484.0,10.0856754]
[1747533330248,0.66666667,2484.4,2484.1,4.0255273]
[1747533330444,0.66666667,2484.4,2484.0,10.08576157]
[1747533330754,0.66666667,2484.4,2484.3,4.02527875]
[1747533330937,0.66666667,2484.4,2484.2,4.02535543]
[1747533334563,0.66666667,2484.4,2484.3,4.02527875]
[1747533335420,0.66666667,2484.4,2484.3,4.4076882]
[1747533337758,0.66666667,2484.4,2484.3,5.7156882]
[1747533337926,0.66666667,2484.4,2484.3,7.44997688]
[1747533338921,0.66666667,2484.4,2484.3,15.44997688]
[1747533340467,11.52046648,2485.5,2485.0,4.02408016]
[1747533340632,0.4517,2485.4,2485.0,4.02408016]
[1747533341524,0.4517,2485.4,2485.1,0.38240945]
[1747533342279,0.4517,2485.4,2485.1,4.40625151]
[1747533342431,0.4517,2485.4,2485.1,4.70299128]
[1747533342772,0.4517,2485.4,2485.2,4.02374679]
[1747533342924,0.4517,2485.4,2485.1,4.70295132]
[1747533343336,0.4517,2485.4,2485.2,0.38240945]
[1747533345039,0.4517,2485.4,2485.0,10.08405756]
[1747533345040,0.4517,2485.4,2485.1,0.38240945]
[1747533345240,0.4517,2485.4,2485.1,0.68993092]
[1747533346126,7.497,2485.5,2485.1,4.7138858]
[1747533346373,11.52033743,2485.5,2485.1,0.68993092]
[1747533346572,7.497,2485.5,2485.1,0.68993092]
[1747533346774,11.52040738,2485.5,2485.1,0.68993092]
[1747533346978,11.52040738,2485.5,2485.2,0.38240945]
[1747533347979,7.497,2485.5,2485.2,0.38240945]
[1747533348269,0.4517,2485.9,2485.2,1.50603677]
[1747533348433,0.4517,2485.9,2485.5,4.02325968]
[1747533348628,0.4517,2485.9,2485.2,8.35983677]
[1747533348829,4.02315827,2485.7,2485.2,12.3835549]
[1747533349647,0.4517,2485.9,2485.2,8.35983677]
[1747533349648,4.02291202,2485.8,2485.2,8.35983677]
[1747533349873,4.0231124,2485.7,2485.2,12.38365447]
[1747533350447,4.02325463,2485.6,2485.3,0.38240945]
[1747533350645,4.02289996,2485.8,2485.3,0.38240945]
[1747533350646,4.02284978,2485.8,2485.3,0.38240945]
[1747533350872,4.02303187,2485.7,2485.3,0.38240945]
[1747533351376,4.0230243,2485.7,2485.3,0.38240945]
[1747533351873,4.0230243,2485.7,2485.2,10.08374787]
[1747533352075,0.4517,2485.9,2485.3,5.06267756]
[1747533352260,0.4517,2485.9,2485.6,4.02307422]
[1747533352468,4.02171727,2486.5,2486.0,4.0224511]
[1747533352649,1.11836667,2486.6,2486.0,4.77484227]
[1747533352858,1.11836667,2486.6,2486.2,4.02219655]
[1747533353166,0.66666667,2486.6,2486.4,4.02180093]
[1747533353365,0.66666667,2486.6,2486.2,4.90178015]
[1747533353366,0.66666667,2486.6,2486.5,4.02171727]
[1747533353739,0.4517,2487.6,2486.6,4.77395553]
[1747533353940,4.47095633,2488.1,2486.8,0.7524]
[1747533354138,0.44709563,2488.0,2487.1,4.0206537]
[1747533354355,4.01954131,2487.9,2487.2,11.51446359]
[1747533354563,4.01958002,2487.9,2487.3,4.0202915]
[1747533354904,0.44709563,2488.0,2487.0,4.02088263]
[1747533355050,4.02055113,2487.3,2486.8,8.2464]
[1747533355239,0.4517,2487.8,2486.8,0.7524]
[1747533355441,4.02055275,2487.3,2486.8,8.7524]
[1747533355661,0.4517,2487.6,2486.5,0.7524]
[1747533355877,4.02134435,2486.8,2486.4,7.494]
[1747533356075,4.02058539,2487.2,2486.4,9.47523966]
[1747533356285,4.02076111,2487.1,2486.6,4.02141009]
[1747533356448,12.01613283,2487.3,2486.5,4.02165939]
[1747533356645,4.02075178,2487.1,2486.5,4.02165939]
[1747533356872,4.02069759,2487.2,2486.6,4.02146655]
[1747533357187,4.02075261,2487.1,2486.6,0.55]
[1747533357394,4.02104305,2487.0,2486.6,0.55]
[1747533357585,4.02109459,2486.9,2486.6,0.55]
[1747533357890,4.02114422,2486.9,2486.6,7.492]
[1747533358484,4.46801651,2487.0,2486.7,0.7875]
[1747533358689,4.02108299,2486.9,2486.5,0.30610767]
[1747533358898,4.02108299,2486.9,2486.5,7.492]
[1747533359270,4.02149222,2486.7,2486.4,0.7875]
[1747533359473,4.02149222,2486.7,2486.1,8.47864034]
[1747533359474,0.65161384,2486.9,2486.1,16.75814034]
[1747533359696,0.65161384,2486.9,2486.1,1.26614034]
[1747533359870,4.0218258,2486.5,2486.2,7.492]
[1747533360069,4.02196645,2486.4,2485.9,18.7155]
[1747533360395,7.556,2486.5,2485.8,7.492]
[1747533360594,4.02244725,2486.1,2485.8,7.492]
[1747533360799,7.556,2486.5,2485.7,0.47864034]
[1747533361098,4.02284978,2485.8,2485.7,0.47864034]
[1747533361275,4.47454978,2485.8,2485.7,0.47864034]
[1747533361479,4.92164541,2485.8,2485.7,0.47864034]
[1747533361807,0.89879563,2485.8,2485.7,0.47864034]
[1747533362016,4.02284978,2485.8,2485.7,0.47864034]
[1747533363594,11.58574836,2485.9,2485.7,0.47864034]
[1747533363795,4.02284978,2485.8,2485.7,0.47864034]
[1747533364095,0.4517,2486.1,2485.4,0.55]
[1747533364096,7.56,2486.0,2485.4,0.55]
[1747533364295,7.56,2486.0,2485.2,0.84827093]
[1747533364501,7.56,2486.0,2485.2,7.79027093]
[1747533364867,4.02290558,2485.8,2485.2,11.81396264]
[1747533365067,4.02290558,2485.8,2485.2,7.79027093]
[1747533365699,4.02276947,2485.9,2485.3,4.02357565]
[1747533366000,4.02285899,2485.8,2485.2,7.79027093]
[1747533366165,4.02325215,2485.6,2485.2,7.79027093]
[1747533366367,4.02325215,2485.6,2485.2,16.36880422]
[1747533366563,4.02309721,2485.7,2485.2,16.36880422]
[1747533366975,4.02320395,2485.6,2485.2,16.36880422]
[1747533367202,4.02320395,2485.6,2485.2,8.87680422]
[1747533367512,4.02268796,2485.9,2485.2,8.87680422]
[1747533367669,4.02341045,2485.5,2485.2,6.06]
[1747533368416,4.02325624,2485.6,2485.2,6.06]
[1747533369501,4.0233696,2485.5,2485.2,6.06]
[1747533369707,8.4517,2486.1,2485.2,8.20352893]
[1747533369941,4.02312943,2485.7,2485.3,6.06]
[1747533370809,4.02236619,2486.1,2485.5,4.02320039]
[1747533370980,4.02236619,2486.1,2485.6,0.93903922]
[1747533371179,4.02236619,2486.1,2485.6,4.02316713]
[1747533372219,7.553,2486.3,2485.4,1.3438]
[1747533372389,4.02263103,2486.0,2485.4,5.3671624]
[1747533372589,4.02263103,2486.0,2485.5,4.02332367]
[1747533372786,4.02242619,2486.1,2485.6,4.02315751]
[1747533373273,4.02252808,2486.0,2485.5,5.94893915]
[1747533373690,4.02252808,2486.0,2485.6,6.06]
[1747533374328,4.02281329,2485.9,2485.6,6.06]
[1747533374701,4.02260894,2486.0,2485.6,6.06]
[1747533374887,4.02239317,2486.1,2485.6,6.06]
[1747533375084,4.02294021,2485.8,2485.6,6.06]
[1747533375296,4.02276208,2485.9,2485.6,6.06]
[1747533376324,4.02301162,2485.7,2485.6,6.06]
[1747533376490,11.56893601,2485.8,2485.6,6.06]
[1747533376824,11.56893601,2485.8,2485.3,4.02364103]
[1747533378021,11.56893601,2485.8,2485.2,10.39027741]
[1747533378022,4.02318029,2485.6,2485.2,10.39027741]
[1747533378201,4.02318029,2485.6,2485.2,6.36653613]
[1747533378401,4.02309892,2485.7,2485.2,10.39033623]
[1747533379746,4.02320573,2485.6,2485.2,6.36653613]
[1747533379977,4.02308865,2485.7,2485.2,10.39034519]
[1747533380239,7.551,2485.7,2485.2,6.36653613]
[1747533380535,4.02322973,2485.6,2485.2,10.39033818]
[1747533380732,11.574078,2485.7,2485.2,10.39033818]
[1747533381105,4.02317347,2485.6,2485.2,6.36653613]
[1747533381308,4.02325555,2485.6,2485.2,6.36653613]
[1747533381506,7.551,2485.7,2485.3,4.02360592]
[1747533381703,11.57402225,2485.7,2485.2,10.39026829]
[1747533382109,4.0231858,2485.6,2485.2,6.36653613]
[1747533382430,4.02317347,2485.6,2485.2,6.36653613]
[1747533383031,4.0235464,2485.4,2485.2,6.06]
[1747533383333,7.551,2485.7,2485.2,6.06]
[1747533383334,4.02365911,2485.3,2485.2,6.06]
[1747533385450,4.47521197,2485.4,2484.7,6.06]
[1747533385616,4.02368779,2485.3,2484.6,1.24504034]
[1747533385816,4.02398709,2485.1,2484.6,5.26974291]
[1747533386537,4.02398709,2485.1,2484.6,1.54780735]
[1747533386538,4.02426118,2485.0,2484.6,1.54780735]
[1747533386754,4.47126885,2485.3,2484.8,4.02439239]
[1747533387045,7.563,2485.2,2484.8,4.02439239]
[1747533387263,7.563,2485.1,2484.6,1.54780735]
[1747533387404,7.563,2485.1,2484.7,4.02459684]
[1747533387610,7.563,2485.1,2484.8,4.02444582]
[1747533387847,7.563,2485.1,2484.7,4.02454994]
[1747533388545,7.563,2485.1,2484.7,10.08454994]
[1747533388848,7.563,2485.1,2484.8,0.38235693]
[1747533389545,4.02386723,2485.2,2484.8,0.38235693]
[1747533389717,0.4517,2485.6,2484.8,1.53596432]
[1747533389916,0.4517,2485.6,2484.9,0.38235693]
[1747533389917,11.58279857,2485.3,2484.9,0.38235693]
[1747533390948,4.02383527,2485.2,2484.9,0.38235693]
[1747533391245,4.02401163,2485.1,2484.9,0.38235693]
[1747533391414,4.02414486,2485.0,2484.9,0.38235693]
[1747533391616,4.47561052,2485.2,2484.9,0.38235693]
[1747533391815,4.02400287,2485.1,2484.9,0.38235693]
[1747533392113,4.02404005,2485.1,2484.9,0.38235693]
[1747533392726,7.574,2485.1,2484.9,0.38235693]
[1747533392926,7.573,2485.1,2484.8,0.38235693]
[1747533394759,11.59698866,2485.1,2484.8,0.38235693]
[1747533396472,7.573,2485.1,2484.8,0.38235693]
[1747533396766,4.02430681,2484.9,2484.8,0.38235693]
[1747533397661,4.02446877,2484.8,2484.7,0.38235693]
[1747533398259,4.02436618,2484.9,2484.7,0.38235693]
[1747533398475,7.564,2484.8,2484.7,0.38235693]
[1747533399845,4.02408353,2485.1,2484.7,0.38235693]
[1747533400081,7.564,2484.9,2484.7,0.38235693]
[1747533400285,4.02408353,2485.1,2484.7,0.38235693]
[1747533400495,0.4517,2485.3,2484.7,0.38235693]
[1747533400496,4.47544924,2485.3,2484.8,0.8005]
[1747533400668,7.562,2485.0,2484.8,4.82489295]
[1747533401086,7.562,2485.0,2484.8,0.8005]
[1747533401462,4.02389704,2485.2,2484.8,0.8005]
[1747533401687,7.561,2485.1,2484.8,0.8005]
[1747533401997,11.58499396,2485.1,2484.9,0.38235693]
[1747533402684,4.02414486,2485.0,2484.9,0.38235693]
[1747533403592,4.02405838,2485.1,2484.9,0.38235693]
[1747533403809,7.557,2485.0,2484.9,0.38235693]
[1747533404097,7.557,2485.0,2484.7,4.40695955]
[1747533404268,11.5802152,2485.0,2484.7,0.38235693]
[1747533405298,7.556,2485.0,2484.7,0.38235693]
[1747533405497,7.556,2485.0,2484.7,4.40685606]
[1747533405881,4.02391073,2485.2,2484.7,4.40685606]
[1747533406065,7.552,2485.0,2484.8,0.38235693]
[1747533406266,11.57624597,2485.0,2484.8,0.38235693]
[1747533406595,4.47600681,2484.9,2484.8,0.38235693]
[1747533407805,11.57619312,2485.0,2484.8,0.38235693]
[1747533408008,11.57619312,2485.0,2484.6,0.38235693]
[1747533408178,4.02419312,2485.0,2484.6,0.38235693]
[1747533408508,7.616,2484.9,2484.6,1.15315693]
[1747533409106,11.64035227,2484.9,2484.6,1.15315693]
[1747533409608,7.616,2484.9,2484.6,1.15315693]
[1747533409907,7.616,2484.9,2484.7,0.38235693]
[1747533410613,4.02446877,2484.8,2484.7,0.38235693]
[1747533410797,4.02446877,2484.8,2484.6,0.38235693]
[1747533411002,4.02463074,2484.7,2484.6,0.38235693]
[1747533411418,4.02453381,2484.8,2484.6,0.38235693]
[1747533412019,11.64036621,2484.9,2484.6,0.38235693]
[1747533412521,4.02449472,2484.8,2484.6,0.38235693]
[1747533413215,4.02449472,2484.8,2484.7,0.38235693]
[1747533413394,11.64037582,2484.9,2484.7,0.38235693]
[1747533414424,4.47616877,2484.8,2484.7,0.38235693]
[1747533414581,4.02446877,2484.8,2484.7,0.38235693]
[1747533414787,4.02446877,2484.8,2484.4,0.78086721]
[1747533414788,4.02468129,2484.7,2484.5,0.38235693]
[1747533416227,4.02468129,2484.7,2484.6,0.38235693]
[1747533417550,0.4517,2485.2,2484.7,4.02463074]
[1747533417694,7.608,2485.1,2484.6,4.84479038]
[1747533417892,7.608,2485.1,2484.7,4.02463074]
[1747533418195,4.02415451,2485.0,2484.6,4.80451916]
[1747533418420,11.63200085,2485.1,2484.6,2.33759213]
[1747533418615,11.63200085,2485.1,2484.6,6.36235111]
[1747533418616,11.63206218,2485.1,2484.6,6.36235111]
[1747533418922,11.63201082,2485.1,2484.6,2.33759213]
[1747533419129,11.63201082,2485.1,2484.6,6.36228934]
[1747533419727,11.63201082,2485.1,2484.7,0.38235693]
[1747533420394,4.02424885,2485.0,2484.7,0.38235693]
[1747533420596,11.63206283,2485.1,2484.7,0.38235693]
[1747533420935,11.63206283,2485.1,2484.8,0.38235693]
[1747533422142,4.02430681,2484.9,2484.8,0.38235693]
[1747533422500,4.02422025,2485.0,2484.6,8.87623247]
[1747533423501,11.62206392,2485.1,2484.7,1.29011246]
[1747533423940,11.62206392,2485.1,2484.8,0.38369149]
[1747533424123,4.0241578,2485.0,2484.8,0.38369149]
[1747533425260,4.0241578,2485.0,2484.9,0.38369149]
[1747533426957,4.02430681,2484.9,2484.8,0.38369149]
[1747533430249,4.02446877,2484.8,2484.7,0.38369149]
[1747533432753,4.02469747,2484.7,2484.5,0.38369149]
[1747533434150,4.02479272,2484.6,2484.5,0.38369149]
[1747533434353,4.02495471,2484.5,2484.4,0.47864034]
[1747533435448,4.02495471,2484.5,2484.4,0.86266291]
[1747533436919,4.02495471,2484.5,2484.4,0.38402257]
[1747533441023,4.47665471,2484.5,2484.4,0.38402257]
[1747533441444,19.64365471,2484.5,2484.4,0.38402257]
[1747533441649,4.0252485,2484.4,2484.2,1.31074034]
[1747533441853,4.02527875,2484.3,2484.2,1.31074034]
[1747533442059,15.172,2484.5,2484.2,1.31074034]
[1747533442418,4.02527875,2484.3,2484.2,1.31074034]
[1747533442618,19.19700956,2484.5,2484.2,1.31074034]
[1747533443019,4.02527875,2484.3,2484.2,0.47864034]
[1747533443215,4.47717687,2484.2,2484.0,0.47864034]
[1747533443423,4.02560283,2484.1,2484.0,0.47864034]
[1747533443721,7.607,2484.1,2484.0,0.47864034]
[1747533443948,7.607,2484.1,2484.0,1.31074034]
[1747533444149,7.586,2484.3,2484.1,4.02554701]
[1747533444353,7.611,2484.1,2484.0,1.31074034]
[1747533444518,7.611,2484.1,2484.0,1.96280302]
[1747533445560,7.611,2484.1,2484.0,2.34645347]
[1747533445723,7.609,2484.3,2484.0,2.34645347]
[1747533446955,7.609,2484.3,2484.0,6.37220068]
[1747533447155,7.609,2484.3,2484.1,0.38365045]
[1747533448661,7.609,2484.3,2484.2,0.38365045]
[1747533449957,7.598,2484.4,2484.2,4.40898108]
[1747533450421,28.99474419,2484.7,2484.3,0.8321]
[1747533450621,7.597,2484.4,2484.3,0.8321]
[1747533451259,11.62213999,2484.4,2484.3,0.38365045]
[1747533451761,12.07383999,2484.4,2484.3,0.38365045]
[1747533452264,19.67383999,2484.4,2484.3,0.38365045]
[1747533453133,4.02527875,2484.3,2484.2,6.06]
[1747533454393,4.02592696,2483.9,2483.8,0.54236667]
[1747533454676,7.605,2483.9,2483.8,0.54236667]
[1747533454822,11.63092696,2483.9,2483.8,0.54236667]
[1747533455161,7.605,2483.9,2483.8,0.54236667]
[1747533455545,4.02568094,2484.1,2483.8,0.54236667]
[1747533455748,7.607,2484.0,2483.8,1.31586667]
[1747533456078,7.607,2484.0,2483.8,1.69979826]
[1747533456255,8.0587,2484.0,2483.8,0.92629826]
[1747533456449,11.63287487,2484.0,2483.8,0.92629826]
[1747533457536,4.02592696,2483.9,2483.8,0.54236667]
[1747533458875,4.47762696,2483.9,2483.8,0.54236667]
[1747533459247,4.47762696,2483.9,2483.8,0.92630573]
[1747533461703,4.47762696,2483.9,2483.8,0.54236667]
[1747533463094,4.02592696,2483.9,2483.8,0.54236667]
[1747533463524,19.21492696,2483.9,2483.8,0.54236667]
[1747533465879,4.02584599,2484.0,2483.8,0.54236667]
[1747533466085,8.0,2484.2,2483.8,0.54236667]
[1747533466286,4.02582741,2484.0,2483.8,0.54236667]
[1747533466898,7.604,2483.9,2483.8,0.54236667]
[1747533467421,7.602,2484.0,2483.8,0.54236667]
[1747533469045,4.02592696,2483.9,2483.8,0.54236667]
[1747533469890,11.62786043,2484.0,2483.8,0.54236667]
[1747533471123,4.02592696,2483.9,2483.8,0.54236667]
[1747533472023,4.02592696,2483.9,2483.8,0.92630897]
[1747533472509,11.62783569,2484.0,2483.8,0.92630897]
[1747533472713,7.602,2484.0,2483.8,0.92630897]
[1747533473330,4.02592696,2483.9,2483.8,0.92630897]
[1747533473530,7.602,2484.0,2483.8,0.92630897]
[1747533474437,4.02592696,2483.9,2483.8,0.92630897]
[1747533477858,11.60292696,2483.9,2483.8,0.92630897]
[1747533478561,7.577,2483.9,2483.8,0.92630897]
[1747533480190,11.60292696,2483.9,2483.8,0.92630897]
[1747533480665,7.577,2483.9,2483.8,0.92630897]
[1747533480968,11.60292696,2483.9,2483.8,0.92630897]
[1747533481166,7.575,2483.9,2483.8,0.92630897]
[1747533481358,11.60092696,2483.9,2483.8,0.92630897]
[1747533481536,7.575,2483.9,2483.8,0.92630897]
[1747533482167,11.60092696,2483.9,2483.8,0.92630897]
[1747533482468,7.575,2483.9,2483.8,0.92630897]
[1747533483274,4.02584967,2484.0,2483.8,0.92630897]
[1747533483451,7.57,2483.9,2483.8,0.92630897]
[1747533485066,11.59592696,2483.9,2483.8,0.92630897]
[1747533488847,15.18,2483.9,2483.8,0.92630897]
[1747533489047,7.578,2483.9,2483.8,0.92630897]
[1747533489947,11.60392696,2483.9,2483.8,0.92630897]
[1747533491455,12.05562696,2483.9,2483.8,0.92630897]
[1747533494083,11.62885211,2484.0,2483.8,0.92630897]
[1747533494260,15.177,2483.9,2483.8,0.92630897]
[1747533495119,7.604,2483.9,2483.8,0.92630897]
[1747533495299,15.178,2483.9,2483.8,0.92630897]
[1747533496601,19.20392696,2483.9,2483.8,0.92630897]
[1747533497597,4.02592696,2483.9,2483.8,0.92630897]
[1747533497779,11.59692696,2483.9,2483.8,0.92630897]
[1747533498702,4.02592696,2483.9,2483.8,0.92630897]
[1747533498871,11.59392696,2483.9,2483.8,0.92630897]
[1747533499212,7.572,2484.1,2483.8,1.68300897]
[1747533499506,7.567,2484.0,2483.8,1.68300897]
[1747533499686,4.02544531,2484.2,2483.8,1.68300897]
[1747533499885,4.0246742,2484.7,2484.2,4.02533674]
[1747533500086,7.579,2484.6,2484.3,0.7567]
[1747533500707,7.577,2484.6,2484.3,4.78197571]
[1747533501008,7.577,2484.6,2484.4,0.60914771]
[1747533501409,7.576,2484.6,2484.5,0.22520541]
[1747533501588,7.575,2484.6,2484.5,0.22520541]
[1747533502320,11.59979272,2484.6,2484.5,0.22520541]
[1747533502690,11.59979272,2484.6,2484.5,0.60914771]
[1747533505725,11.59979272,2484.6,2484.5,0.3839423]
[1747533505913,4.02519596,2484.4,2484.1,0.8299]
[1747533506627,4.02519596,2484.4,2484.2,0.22477493]
[1747533507120,4.02527875,2484.3,2484.2,0.22477493]
[1747533507429,4.02527875,2484.3,2483.9,7.36854034]
[1747533507632,4.02527875,2484.3,2484.2,0.38362451]
[1747533508815,4.02567585,2484.1,2483.8,1.34716667]
[1747533509027,4.02580625,2484.0,2483.8,1.34716667]
[1747533509204,11.60167585,2484.1,2483.8,0.54236667]
[1747533509205,12.05339694,2484.1,2483.8,0.54236667]
[1747533509403,4.02585549,2484.0,2483.8,0.54236667]
[1747533509726,4.02585549,2484.0,2483.9,0.2248631]
[1747533510394,4.02585549,2484.0,2483.9,0.60865229]
[1747533511126,4.02585549,2484.0,2483.9,0.38378919]
[1747533511513,4.47755549,2484.0,2483.9,0.38378919]
[1747533511713,4.02592696,2483.9,2483.8,0.54236667]
[1747533512291,5.45036935,2483.9,2483.8,0.54236667]
[1747533512488,4.02592696,2483.9,2483.8,0.54236667]
[1747533512692,5.90206935,2483.9,2483.8,0.54236667]
[1747533513805,4.47762696,2483.9,2483.8,0.54236667]
[1747533514627,19.62462696,2483.9,2483.8,0.54236667]
[1747533516241,29.04906935,2483.9,2483.8,0.54236667]
[1747533519128,29.59906935,2483.9,2483.8,0.54236667]
[1747533519640,45.44209335,2483.9,2483.8,0.54236667]
[1747533521057,44.73437635,2483.9,2483.8,0.54236667]
[1747533521644,34.90904935,2483.9,2483.8,0.54236667]
[1747533523364,19.35026035,2483.9,2483.8,0.54236667]
[1747533523527,21.47506935,2483.9,2483.8,0.54236667]
[1747533523844,29.04106935,2483.9,2483.8,0.54236667]
[1747533525664,21.47506935,2483.9,2483.8,0.54236667]
[1747533525869,29.03706935,2483.9,2483.8,0.54236667]
[1747533527533,40.77466735,2483.9,2483.8,0.54236667]
[1747533527729,13.45906935,2483.9,2483.8,0.54236667]
[1747533527961,19.61062696,2483.9,2483.8,0.54236667]
[1747533528265,4.02592696,2483.9,2483.8,0.54236667]
[1747533528454,11.58292696,2483.9,2483.8,0.54236667]
[1747533528769,19.16992696,2483.9,2483.8,0.54236667]
[1747533531364,11.58292696,2483.9,2483.8,0.54236667]
[1747533531665,19.16292696,2483.9,2483.8,0.54236667]
[1747533532167,19.16192696,2483.9,2483.8,0.54236667]
[1747533533466,19.15792696,2483.9,2483.8,0.54236667]
[1747533534164,11.58292696,2483.9,2483.8,0.54236667]
[1747533534466,19.15992696,2483.9,2483.8,0.54236667]
[1747533536846,19.15592696,2483.9,2483.8,0.54236667]
[1747533538177,11.58192696,2483.9,2483.8,0.54236667]
[1747533538473,19.15292696,2483.9,2483.8,0.54236667]
[1747533538661,11.58192696,2483.9,2483.8,1.34666667]
[1747533538858,19.15192696,2483.9,2483.8,1.34666667]
[1747533539260,19.15092696,2483.9,2483.8,1.34666667]
[1747533539445,4.02592696,2483.9,2483.8,1.34666667]
[1747533539650,7.57,2483.9,2483.8,1.34666667]
[1747533540246,11.59592696,2483.9,2483.8,1.34666667]
[1747533541476,11.59192696,2483.9,2483.8,1.34666667]
[1747533541672,4.02592696,2483.9,2483.8,1.34666667]
[1747533541976,11.59192696,2483.9,2483.8,1.34666667]
[1747533543165,11.58792696,2483.9,2483.8,1.34666667]
[1747533544039,11.58177949,2484.0,2483.8,1.34666667]
[1747533544040,7.556,2484.0,2483.8,1.34666667]
[1747533544240,7.56,2483.9,2483.8,1.07965389]
[1747533544880,7.56,2483.9,2483.8,1.89005389]
[1747533545053,21.41252062,2484.2,2483.8,1.89005389]
[1747533545375,7.56,2484.1,2483.9,0.8104]
[1747533545873,17.387,2484.2,2483.9,0.8104]
[1747533546075,7.558,2484.1,2483.9,0.59162857]
[1747533546276,7.558,2484.1,2484.0,0.8104]
[1747533547044,7.558,2484.1,2484.0,1.0347118]
[1747533547344,19.13836845,2484.3,2484.0,1.0347118]
[1747533547879,19.13836845,2484.3,2484.0,0.8104]
[1747533548177,4.02544272,2484.2,2484.0,0.8104]
[1747533549177,15.108,2484.3,2484.0,5.16955671]
[1747533549382,15.108,2484.3,2484.1,0.7564]
[1747533549992,15.108,2484.3,2484.1,1.1388401]
[1747533550349,19.13335409,2484.3,2484.1,1.1388401]
[1747533550754,19.13333888,2484.3,2484.1,1.1388401]
[1747533551495,19.13333888,2484.3,2484.1,0.7564]
[1747533552959,4.02520625,2484.4,2484.1,0.7564]
[1747533553160,11.56835359,2484.3,2484.1,0.7564]
[1747533554597,4.02544078,2484.2,2484.1,0.7564]
[1747533554801,11.56835793,2484.3,2484.1,0.98062344]
[1747533555482,4.02544078,2484.2,2484.1,0.98062344]
[1747533556393,4.02544078,2484.2,2484.1,1.36342301]
[1747533557083,11.56833922,2484.3,2484.1,1.36342301]
[1747533557472,11.56833922,2484.3,2484.2,0.22422344]
[1747533557673,11.56833922,2484.3,2484.2,0.60702301]
[1747533558061,7.537,2484.3,2484.2,0.60702301]
[1747533558391,2.5,2484.6,2484.2,1.14592396]
[1747533558591,19.10097015,2484.5,2484.2,0.60702301]
[1747533558892,19.10097015,2484.5,2484.3,0.22422344]
[1747533559195,4.02511672,2484.4,2484.3,0.22422344]
[1747533559594,4.02511672,2484.4,2484.3,0.60702301]
[1747533560095,11.56511672,2484.4,2484.3,0.60702301]
[1747533561206,4.02533594,2484.3,2484.1,0.7564]
[1747533562103,4.02533594,2484.3,2484.2,0.22454207]
[1747533562463,4.02533594,2484.3,2484.2,0.60775313]
[1747533562703,11.56519236,2484.4,2484.2,0.60775313]
[1747533562870,7.54,2484.4,2484.3,0.22454207]
[1747533563473,7.54,2484.4,2484.3,0.60775313]
[1747533565972,11.56511672,2484.4,2484.3,0.60775313]
[1747533567107,2.5,2484.6,2484.3,0.60775313]
[1747533567319,10.035,2484.6,2484.4,0.7855]
[1747533567611,7.535,2484.6,2484.4,0.7855]
[1747533568097,7.535,2484.6,2484.5,0.22454207]
[1747533568403,4.02465363,2484.7,2484.5,0.22454207]
[1747533568608,11.55965363,2484.7,2484.5,0.22454207]
[1747533568814,11.55965363,2484.7,2484.5,0.60775313]
[1747533569608,11.55965363,2484.7,2484.6,0.22454207]
[1747533570713,11.55965363,2484.7,2484.6,0.60775313]
[1747533572209,4.02465363,2484.7,2484.6,0.60775313]
[1747533572391,11.55165363,2484.7,2484.6,0.60775313]
[1747533582914,4.02463074,2484.7,2484.6,0.60775313]
[1747533583115,11.54463074,2484.7,2484.6,0.60775313]
[1747533585450,7.52,2484.7,2484.6,0.60775313]
[1747533585944,11.54463074,2484.7,2484.6,0.60775313]
[1747533586555,2.5,2484.9,2484.6,0.60775313]
[1747533586851,7.52,2484.9,2484.6,4.63240733]
[1747533587030,7.52,2484.9,2484.8,0.7761]
[1747533587231,7.52,2484.9,2484.8,1.00064207]
[1747533587649,11.54430681,2484.9,2484.8,1.00064207]
[1747533588018,11.54430681,2484.9,2484.8,0.22454207]
[1747533589153,11.54430681,2484.9,2484.8,0.60775313]
[1747533590263,4.47441062,2485.9,2484.9,0.7524]
[1747533590463,7.554,2485.8,2485.1,0.7524]
[1747533590667,4.0231558,2485.7,2485.1,4.77629921]
[1747533590961,11.5761558,2485.7,2485.2,0.22454207]
[1747533591167,11.5761558,2485.7,2485.3,0.7524]
[1747533591367,11.5761558,2485.7,2485.4,0.22454207]
[1747533592134,11.5761558,2485.7,2485.5,0.22454207]
[1747533593273,11.5761558,2485.7,2485.3,1.21647005]
[1747533594069,11.5761558,2485.7,2485.4,0.22411835]
[1747533594231,4.02319469,2485.6,2485.4,0.22411835]
[1747533594434,11.57609678,2485.7,2485.4,0.38231739]
[1747533594664,7.553,2485.7,2485.4,0.94457578]
[1747533594867,7.553,2485.7,2485.4,0.38231739]
[1747533595437,11.57609162,2485.7,2485.4,0.38231739]
[1747533595635,11.57602524,2485.7,2485.4,0.38231739]
[1747533596036,11.57603219,2485.7,2485.4,0.38231739]
[1747533596250,7.553,2485.7,2485.4,0.54530654]
[1747533596564,7.543,2485.7,2485.5,0.7764]
[1747533597667,4.02280526,2485.9,2485.5,0.7764]
[1747533597874,11.5648785,2485.8,2485.5,0.7764]
[1747533598277,11.5648785,2485.8,2485.5,1.31092998]
[1747533599076,4.02302314,2485.7,2485.5,1.31092998]
[1747533599254,7.542,2485.8,2485.5,0.7764]
[1747533599575,4.02349722,2485.4,2485.3,0.7765]
[1747533600074,4.02349722,2485.4,2485.1,0.7765]
[1747533600377,4.02342213,2485.5,2485.1,0.7765]
[1747533600542,4.02342213,2485.5,2485.2,0.60212826]
[1747533601950,4.02342213,2485.5,2485.1,0.7765]
[1747533601951,4.02361154,2485.4,2485.1,0.7765]
[1747533602454,7.543,2485.3,2485.1,0.7765]
[1747533602646,7.544,2485.4,2485.1,4.80037634]
[1747533602975,7.549,2485.8,2485.4,4.02347035]
[1747533603179,7.552,2485.8,2485.5,0.7595]
[1747533603480,11.57488656,2485.8,2485.5,1.64016283]
[1747533603671,7.552,2485.8,2485.5,0.7595]